Cogmind - Beta 16 @@@ ROGUE MODE // 2025.11.18 @ 00:43:15 Player: puppuppit Result: Destroyed by P-70 Sage with High-powered Shock Rifle Performance ------------- Evolutions (5) 2500 Regions Visited (13) 2600 Robots Destroyed (263) 1315 Value Destroyed (9179) 9179 Prototype IDs (217) 4340 Alien Tech Used (0) 0 Bonus (6748) 6748 TOTAL SCORE: 26682 Bonus ------- Triggered High Security 500 High Alert Combat Kills 1894 Follower Combat Kills 237 Entered Garrisons 200 Met Data Miner 300 Used Data Conduit 3000 Acquired ECA 300 Pursued by Intercept 500 Friendly Fire -183 Cogmind --------- Core Integrity 0/1000 Matter 290/300 Energy 13/125 System Corruption 21% Temperature Cool (12) Movement Hovering (55) Location -5/Factory Parts ------- > --- POWER (1) -------- Light Ion Engine > --- PROPULSION (6) --- Antigrav System Antigrav System Gyrokinetic Inverter VTOL Module > --- UTILITY (7) ------ Machine Analyzer Improved Target Analyzer Core Analyzer > --- WEAPON (3) ------- High-powered Shock Rifle Autogun > --- INVENTORY (5) ---- Advanced Cooling System Matter Compressor (166) Enhanced Gauss Cannon Peak State ------------ > --- POWER ------------ Micro Fission Core > --- PROPULSION ------- Gravmag System Gyrokinetic Inverter Linear Gravjet Xenon Bombardment Thruster Xenon Bombardment Thruster Field Propulsion Drive > --- UTILITY ---------- Encrypted Comm Array Improved Target Analyzer Improved Target Analyzer Core Analyzer Precision Matter Filter Weapon Cycler > --- WEAPON ----------- Gauss Rifle Advanced Assault Cannon Enhanced Gauss Cannon > --- INVENTORY -------- Advanced Cooling System Matter Compressor Long-range Tractor Beam KE Penetrator Heavy Shock Bomb Launcher [Rating: 82] Favorites ----------- Power Reinforced Ion Engine Engine Reinforced Ion Engine Power Core Light Nuclear Core Propulsion Armored Treads Treads Armored Treads Leg Aluminum Leg Hover Unit Airjet Flight Unit Field Propulsion Drive Utility Hacking Suite Device Improved Sensor Array Storage Large Storage Unit Processor Improved Signal Interpreter Hackware Hacking Suite Protection Hardened Medium Armor Plating Weapon Flak Cannon Energy Gun EM Pulse Gun Ballistic Gun Light Assault Rifle Ballistic Cannon Flak Cannon Launcher Grenade Launcher Special Weapon Molecular Deconstructor Build | -11 -10 -10 -10 -9 -8 -8 -7 -7 -7 -7 -6 -6 -5 ------- Run | Yrd Mat Min Exi Min Mat Gar Fac Low Low Dat Pro Fac Fac Slots Evolved 10 | . . . . . 4 . 2 . . . . 2 2 Power . | . . . . . . . . . . . . . . Propulsion 4 | . . . . . 1 . 1 . . . . 1 1 Utility 5 | . . . . . 2 . 1 . . . . 1 1 Weapon 1 | . . . . . 1 . . . . . . . . Parts Attached 168 | 8 14 3 . 1 35 2 34 12 1 1 11 22 24 Power 21 | 1 2 1 . . 4 . 4 1 . . 2 4 2 Engine 10 | 1 2 . . . 2 . 1 1 . . 1 1 1 Core 11 | . . 1 . . 2 . 3 . . . 1 3 1 Reactor . | . . . . . . . . . . . . . . Propulsion 56 | 2 4 2 . . 14 . 13 3 1 1 . 5 11 Treads 22 | 2 2 2 . . 14 . 2 . . . . . . Leg 2 | . 2 . . . . . . . . . . . . Wheel . | . . . . . . . . . . . . . . Hover 26 | . . . . . . . 11 3 1 1 . 5 5 Flight 6 | . . . . . . . . . . . . . 6 Utility 46 | 2 4 . . . 9 2 10 4 . . 6 5 4 Device 12 | 1 . . . . 1 1 3 1 . . 3 1 1 Storage 4 | 1 2 . . . 1 . . . . . . . . Processor 10 | . . . . . 1 . 3 . . . 1 3 2 Hackware 11 | . 2 . . . 2 1 3 . . . 1 1 1 Protection 9 | . . . . . 4 . 1 3 . . 1 . . Artifact . | . . . . . . . . . . . . . . Weapon 45 | 3 4 . . 1 8 . 7 4 . . 3 8 7 Energy Gun 5 | 2 2 . . . . . . . . . . . 1 Energy Cannon . | . . . . . . . . . . . . . . Ballistic Gun 19 | 1 2 . . . 4 . . 3 . . 3 3 3 Ballistic Cannon 17 | . . . . . 4 . 7 . . . . 4 2 Launcher 3 | . . . . 1 . . . 1 . . . . 1 Special Weapon 1 | . . . . . . . . . . . . 1 . Impact Weapon . | . . . . . . . . . . . . . . Slashing Weapon . | . . . . . . . . . . . . . . Piercing Weapon . | . . . . . . . . . . . . . . Special Melee Weapon . | . . . . . . . . . . . . . . Unidentified Prototypes 3 | . . . . . . . 1 1 . . . 1 . Corrupted Parts 1 | . . . . . . . . . . . . . 1 System Corruption 6 | . . . . . . . . . . . . . 6 Parts Lost 69 | . 5 . . . 13 . 9 2 . 6 2 19 13 Power 9 | . 2 . . . 3 . . . . 1 1 2 . Propulsion 27 | . 1 . . . 5 . 5 2 . 2 1 6 5 Utility 13 | . . . . . . . 2 . . 3 . 3 5 Weapon 20 | . 2 . . . 5 . 2 . . . . 8 3 Highest Loss Streak 17 | . 2 . . . 5 . 4 1 . 6 2 17 7 To Critical Strikes 1 | . . . . . . . . . . . . 1 . Average Backups 13 | 2 11 14 14 14 13 14 14 14 13 14 12 13 4 Power . | . . . . 1 . . . . . . . . . Propulsion 3 | . 2 5 4 4 3 2 4 2 2 2 . . . Utility 6 | . 7 7 7 6 6 8 7 7 7 7 7 5 2 Weapon 2 | . 1 2 2 2 2 2 2 3 3 4 3 4 1 Tool/Special . | . . . . . . . . . . . . . . Unused Backups 45 | . 5 4 . 1 10 2 8 2 . . . 9 4 Power 4 | . . . . . 1 . 1 . . . . 2 . Propulsion 5 | . . . . . 4 . 1 . . . . . . Utility 31 | . 5 4 . 1 5 1 4 2 . . . 6 3 Weapon 5 | . . . . . . 1 2 . . . . 1 1 Tool/Special . | . . . . . . . . . . . . . . Average Slot Usage (%) 93 | . 97 100 75 100 95 100 95 90 92 74 76 86 52 Engine 4 | . 11 8 . . 4 9 3 . . . 3 4 . Core 3 | . . 5 14 14 1 . 3 7 7 6 1 . 1 Treads 18 | . 27 28 28 28 26 27 15 . . . . . . Hover 8 | . . . . . . . 13 29 30 30 27 23 7 Device 2 | . 2 . . . . . . 12 15 11 6 9 7 Storage 8 | . 14 14 14 14 9 9 7 7 7 7 7 5 . Processor 3 | . . . . . 3 . . 7 7 7 13 12 17 Hackware 15 | . 11 14 14 14 15 21 27 . . . . 6 . Protection 3 | . . . . . 7 5 . 7 7 7 2 2 . Energy Gun 3 | . 17 14 2 14 . . . . . . . . . Ballistic Gun 7 | . 9 14 2 11 11 . . 12 15 2 10 17 1 Ballistic Cannon 11 | . . . . . 14 27 19 2 . . . . 3 Peak Build Rating 82 | 9 10 15 15 15 34 36 49 58 52 50 57 72 82 Average Rating 33 | 6 9 12 13 15 26 34 42 47 50 39 43 63 44 On Entrance 25 | . 9 10 15 15 15 34 34 39 50 50 25 42 16 Avg Prop Armor Cover (%) 6 | . . . . . . . . . . 6 7 24 6 Naked Turns . | . . . . . . . . . . . . . . Heaviest Build 64 | 12 47 28 28 30 56 55 64 40 40 41 42 50 30 Greatest Support 80 | 40 40 42 42 42 62 60 80 41 41 41 42 52 33 Greatest Overweight (x) 6 | . 2 . 1 . . . 1 . . . 1 6 1 Average Overweight (x) . | . . . . . . . . . . . . . . Largest Inventory Capacity 20 | 8 20 15 15 15 15 15 15 15 15 15 15 15 5 Average Capacity 14 | 7 14 15 15 15 15 15 15 15 15 15 15 14 5 Most Carried 15 | 5 15 15 15 15 15 15 15 15 15 15 15 15 5 Average Carried 13 | 2 11 14 14 14 14 14 14 14 14 14 13 14 4 Final Capacity 15 | 8 15 15 15 15 15 15 15 15 15 15 15 5 5 Final Carried 15 | 5 15 15 15 15 15 15 13 15 15 15 15 5 3 Class Distribution -------------------- 35% | Mutant 18% | Hacker-Gunner 13% | Hacker-Tank 9% | Hacker-Mutant 7% | Scavenger-Tank 6% | Gunner 5% | Tank Dominant Class ---------------- Mutant | -10/Materials Mutant | -10/Mines Mutant | -10/Exiles Mutant | -9/Mines Scavenger-Tank | -8/Materials Hacker-Tank | -8/Garrison Hacker-Gunner | -7/Factory Mutant | -7/Lower Caves Mutant | -7/Lower Caves Mutant | -7/Data Miner Mutant | -6/Proximity Caves Gunner | -6/Factory Mutant | -5/Factory Resources | -11 -10 -10 -10 -9 -8 -8 -7 -7 -7 -7 -6 -6 -5 ----------- Run | Yrd Mat Min Exi Min Mat Gar Fac Low Low Dat Pro Fac Fac Matter Collected 10017 | 428 292 178 106 . 1977 583 3675 672 83 . 212 930 881 Remotely 1318 | . . . . . . . 583 652 83 . . . . Salvage Created 8291 | 218 1012 6 . 178 1901 216 2540 610 53 . 107 769 681 Parts 446 | 20 63 2 . 6 98 26 121 32 1 . 8 43 26 Haulers Intercepted 8 | . . . . . 5 . 2 1 . . . . . Recyclers Shooed 10 | . . . . . 1 . 6 . . . . 2 1 Parts Field Recycled . | . . . . . . . . . . . . . . Retrieved Matter . | . . . . . . . . . . . . . . Parts Self-Destructed 37 | . . . . . . . . 33 1 . 3 . . Prevented . | . . . . . . . . . . . . . . Parts Restored . | . . . . . . . . . . . . . . Kills | -11 -10 -10 -10 -9 -8 -8 -7 -7 -7 -7 -6 -6 -5 ------- Run | Yrd Mat Min Exi Min Mat Gar Fac Low Low Dat Pro Fac Fac Combat Hostiles Destroyed 179 | . 20 . . 11 35 14 53 13 3 . 6 16 8 Guns 56 | . 18 . . . 16 . . 8 . . 3 8 3 Cannons 85 | . . . . . 16 14 51 . . . . 1 3 AOE 37 | . 2 . . 11 3 . 2 5 3 . 3 6 2 Classes Destroyed 19 | 3 5 . . 1 6 . 3 . . . 1 . . Worker 20 | 2 3 1 . . 3 . 11 . . . . . . Builder 7 | . 1 . . . 3 . 3 . . . . . . Tunneler 5 | 5 . . . . . . . . . . . . . Hauler 8 | . . . . . 5 . 2 1 . . . . . Recycler 26 | 1 2 . . . 6 . 12 . . . . 2 3 Mechanic 2 | . . . . . 1 . 1 . . . . . . Operator 8 | . 3 . . . 3 . 1 . . . . 1 . Drone 1 | . . . . . . . . . . . 1 . . Watcher 15 | . 3 . . . 5 . 7 . . . . . . Swarmer 44 | . 6 . . . 6 7 6 3 3 . 4 7 2 Grunt 76 | . 14 . . 3 17 1 29 8 . . . 2 2 Brawler 3 | . . . . . 1 . 2 . . . . . . Duelist 5 | . . . . . . . 4 . . . . . 1 Protector 1 | . . . . . . . 1 . . . . . . Sentry 16 | . . . . . 8 3 3 . . . . 2 . Hunter 9 | . . . . . 2 3 1 1 . . 1 . 1 Programmer 14 | . . . . . . . 7 1 . . . 4 2 Heavy 1 | . . . . . 1 . . . . . . . . Combat Programmer 1 | . . . . . . . . . . . . 1 . Assembled 11 | . . . . 11 . . . . . . . . . Thug 1 | . . . . 1 . . . . . . . . . Best Kill Streak 11 | 4 4 1 . 11 7 3 7 6 3 . 4 4 4 Combat Bots Only 11 | . 3 . . 11 6 3 4 5 3 . 4 4 3 Max Kills in Single Turn 5 | 1 2 1 . 5 2 1 3 2 3 . 3 2 1 Gunslinging . | . . . . . . . . . . . . . . Exploded 3 | . 1 . . 3 2 . 2 2 3 . 3 2 1 Melee . | . . . . . . . . . . . . . . Uniques/NPCs Destroyed . | . . . . . . . . . . . . . . Combat | -11 -10 -10 -10 -9 -8 -8 -7 -7 -7 -7 -6 -6 -5 -------- Run | Yrd Mat Min Exi Min Mat Gar Fac Low Low Dat Pro Fac Fac Hostile Shots Fired 1163 | . 95 . . 24 220 51 274 59 2 15 30 235 158 Missed 368 | . 15 . . 6 70 7 108 19 . 4 13 68 58 Hits 795 | . 80 . . 18 150 44 166 40 2 11 17 167 100 Melee 13 | . . . . 1 . . 10 . . . . . 2 Projectile 782 | . 80 . . 17 150 44 156 40 2 11 17 167 98 AOE 4 | . . . . . 1 . 1 . . 1 . . 1 Critical Strikes 26 | . 2 . . . 5 . 4 2 . . 1 6 6 Damage Taken 13540 | . 936 . . 277 2600 539 2511 724 24 607 237 3097 1988 Core 2931 | . 148 . . 75 346 34 165 166 12 98 44 831 1012 Absorbed by Shields 32 | . . . . . . . 32 . . . . . . Redirected to Shielding 183 | . . . . . 32 . . 54 . 97 . . . Ignored by Resistances 93 | . . . . . 86 . 7 . . . . . . Regen/Repaired (Parts) 950 | . 165 . . . 478 . 129 . . . . 178 . Core Remaining (%) 34 | 100 . . . 10 . 30 . . . . 30 2 . Volleys Fired 694 | 18 78 4 . 8 184 53 213 39 1 . 13 35 48 Largest 3 | 2 2 2 . 2 3 3 3 3 2 . 3 3 3 Hottest 142 | 70 90 60 . 70 111 111 117 93 63 . 90 142 115 Shots Fired 1509 | 36 154 10 . 18 505 97 433 86 3 . 22 81 64 Gun 769 | 36 154 10 . 10 368 . . 82 2 . 19 56 32 Cannon 709 | . . . . . 133 97 433 . . . . 17 29 Launcher 28 | . . . . 8 4 . . 4 1 . 3 5 3 Special 3 | . . . . . . . . . . . . 3 . Kinetic 1343 | 18 59 4 . 1 499 97 433 82 2 . 19 73 56 Thermal 45 | 18 27 . . . . . . . . . . . . Explosive 25 | . . . . 8 4 . . 4 1 . 3 5 . Electromagnetic 93 | . 68 6 . 9 2 . . . . . . . 8 Robot Hit Streak 24 | 11 12 12 . 2 24 10 14 8 . . 2 9 6 Robot Miss Streak 8 | 3 2 1 . 2 8 4 6 3 2 . 7 2 3 Penetration Max 1 | . . . . . . . 1 . . . . 1 1 Secondary Targets 8 | . 4 . . . 3 . . 1 . . . . . Max Gunslinging Chain 1 | . 1 . . . 1 . . 1 . . . . . Shots Hit Robots 974 | 25 102 6 . 9 360 48 277 49 . . 7 46 45 Core Hits 691 | 11 53 1 . 25 221 54 234 27 4 . 10 29 22 Critical Kills 2 | . . . . . . . . . . . . 2 . Critical Parts Destroyed 3 | . . . . . 1 . . . . . . 1 1 Critical Strikes 48 | 2 3 . . . 2 2 28 . . . . 5 6 Burn 4 | 2 2 . . . . . . . . . . . . Destroy 6 | . . . . . 2 . . . . . . 3 1 Blast 37 | . . . . . . 2 28 . . . . 2 5 Corrupt 1 | . 1 . . . . . . . . . . . . Melee Attacks . | . . . . . . . . . . . . . . Impact . | . . . . . . . . . . . . . . Slashing . | . . . . . . . . . . . . . . Piercing . | . . . . . . . . . . . . . . Sneak Attacks . | . . . . . . . . . . . . . . Combat Hostiles . | . . . . . . . . . . . . . . Follow-up Attacks . | . . . . . . . . . . . . . . Damage Inflicted 21400 | 279 1429 67 . 1007 4736 1060 7586 1378 137 12 437 1849 1423 Guns 6453 | 279 1256 67 . 61 2200 . . 1108 . . 109 782 591 Cannons 11782 | . . . . . 2226 1060 7478 . . . . 507 511 Explosions 3120 | . 173 . . 946 310 . 88 270 137 . 328 560 308 Melee . | . . . . . . . . . . . . . . Ramming 45 | . . . . . . . 20 . . 12 . . 13 Kinetic 16937 | 91 292 24 . . 4426 1060 7478 1108 . . 109 1289 1060 Thermal 600 | 188 412 . . . . . . . . . . . . Explosive 2802 | . . . . 946 310 . 88 270 137 . 328 560 163 Electromagnetic 1016 | . 725 43 . 61 . . . . . . . . 187 Impact . | . . . . . . . . . . . . . . Slashing . | . . . . . . . . . . . . . . Piercing . | . . . . . . . . . . . . . . Highest Corruption 21 | . 2 2 2 2 1 1 8 8 8 8 8 12 21 Average Corruption 3 | . 1 2 2 2 1 1 5 8 8 8 8 5 11 Corruption Purged . | . . . . . . . . . . . . . . Corruption Blocked . | . . . . . . . . . . . . . . Effects 227 | . 14 12 8 7 21 10 80 27 16 2 11 8 11 Message Errors 57 | . 5 3 3 . 3 2 18 10 5 . 1 2 5 Matter Fused 63 | . 2 4 1 2 . 2 30 6 5 1 5 2 3 Heat Flow Errors 29 | . 1 2 . 1 7 2 10 3 . . 2 1 . Energy Discharges 19 | . 2 1 1 2 . . 7 1 2 1 1 . 1 Data Loss (minor) 20 | . 1 . 1 . 3 4 3 4 1 . 2 1 . Data Loss (major) 13 | . 1 . 1 . 3 . 6 1 1 . . . . Misfires 14 | . 1 2 . 2 3 . 4 1 1 . . . . Alerts 6 | . 1 . 1 . 2 . 1 . 1 . . . . Misdirections 1 | . . . . . . . . . . . . . 1 Weapon Failures 5 | . . . . . . . 1 1 . . . 2 1 Overload Shots . | . . . . . . . . . . . . . . Overflow Damage 261 | . 35 . . 5 1 . 157 . 3 . 10 36 14 Projectiles 167 | . . . . . 1 . 157 . . . . 9 . Explosions 94 | . 35 . . 5 . . . . 3 . 10 27 14 Melee . | . . . . . . . . . . . . . . Knockbacks 164 | . . . . . 34 16 102 . . . . 6 6 Impact . | . . . . . . . . . . . . . . Kinetic 154 | . . . . . 31 15 97 . . . . 6 5 Secondary 10 | . . . . . 3 1 5 . . . . . 1 Self-Inflicted Damage 233 | . 18 . . 43 . . 10 49 . 6 . 24 83 Shots 9 | . 1 . . 3 . . . 1 . . . 1 3 Rammed 3 | . . . . . . . 1 . . 1 . . 1 Targets Rammed 3 | . . . . . . . 1 . . 1 . . 1 Kicked . | . . . . . . . . . . . . . . Crushed . | . . . . . . . . . . . . . . Highest Temperature 367 | 110 291 266 . 277 343 358 367 240 16 . 200 88 168 Average Temperature 60 | 36 58 82 . 153 60 76 53 63 9 . 54 27 66 Received Heat Transfer 2914 | . 444 . . 72 1083 81 765 234 . 12 21 54 148 Effects 10 | . 2 . . . 2 2 4 . . . . . . Shutdowns 2 | . . . . . . 1 1 . . . . . . Energy Bleed 1 | . . . . . . 1 . . . . . . . Interference 5 | . 2 . . . 1 . 2 . . . . . . Short Circuit 2 | . . . . . 1 . 1 . . . . . . Siege Activations . | . . . . . . . . . . . . . . Martial Activations . | . . . . . . . . . . . . . . Shielding Activations . | . . . . . . . . . . . . . . Robots Disrupted . | . . . . . . . . . . . . . . Combat Hostiles . | . . . . . . . . . . . . . . Robots Corrupted . | . . . . . . . . . . . . . . Combat Hostiles . | . . . . . . . . . . . . . . Parts Fried 7 | . 2 . . . . . 1 . . . . . 4 Impact Corruptions . | . . . . . . . . . . . . . . Robots Melted . | . . . . . . . . . . . . . . Combat Hostiles . | . . . . . . . . . . . . . . Parts Melted 3 | . 2 . . . . . 1 . . . . . . Heat Transferred 1769 | 703 1066 . . . . . . . . . . . . Parts Sabotaged 2 | . . . . . . . . . . . . . 2 Parts Stolen . | . . . . . . . . . . . . . . Parts Stripped . | . . . . . . . . . . . . . . Power Chain Reactions 2 | . 2 . . . . . . . . . . . . Alert | -11 -10 -10 -10 -9 -8 -8 -7 -7 -7 -7 -6 -6 -5 ------- Run | Yrd Mat Min Exi Min Mat Gar Fac Low Low Dat Pro Fac Fac Maximum Alert Level 5 | . 1 . . . 2 4 5 . . . . 2 2 Low Security (%) 39 | 100 95 100 . 100 62 11 . . . . . . 5 Level 1 15 | . 4 . . . 36 9 . . . . . 38 40 Level 2 12 | . . . . . 1 24 8 . . . . 61 54 Level 3 13 | . . . . . . 22 39 . . . . . . Level 4 15 | . . . . . . 33 39 . . . . . . Level 5 1 | . . . . . . . 4 . . . . . . High Security 2 | . . . . . . . 8 . . . . . . Max Security . | . . . . . . . . . . . . . . Peak Influence 2065 | 20 214 76 . 45 430 1537 2065 . . . . 609 497 Initial 806 | . . 76 . . 9 111 806 . . . . 487 247 Average 530 | 3 66 7 . 8 161 812 1182 . . . . 426 373 Influence Increases 8566 | 40 682 5 . 75 1178 1446 2755 285 100 . 125 1288 587 Destroy 0b10 Robot/C 3580 | . 400 . . . 700 400 1140 260 60 . 100 360 160 Destroy 0b10 Robot/NC 475 | 40 60 5 . . 130 5 195 5 . . 5 15 15 Destroy Leader 774 | . 96 . . . 210 . 278 20 10 . 20 110 30 Allied During Kill 123 | . . . . . . 104 19 . . . . . . Trap Triggered on 0b10 10 | . . . . . . . 10 . . . . . . Successful Hack 372 | . 12 . . . 55 12 142 . . . . 139 12 Select Force Hacks 60 | . 60 . . . . . . . . . . . . Disable Machine 300 | . . . . . . 15 180 . . . . 90 15 Anti-Garrison Action 1000 | . . . . . . 850 . . . . . . 150 Destroy Structure 267 | . 9 . . 30 23 45 86 . . . . 34 40 Advance Influence 450 | . . . . . . . . . . . . 450 . Partial Spotted 45 | . . . . . . . 30 . . . . 15 . Lose Combat Pursuer 1110 | . 45 . . 45 60 15 675 . 30 . . 75 165 Influence Decreases 8116 | 40 484 203 . 50 1031 81 2266 1174 431 806 65 843 642 Entered New Map 2984 | . . 122 . . 16 61 731 750 217 806 . 23 258 Time Decay 3252 | 40 434 81 . 50 595 . 725 404 214 . 45 410 254 Search Patrol Dispatched 200 | . . . . . . . . . . . . 200 . Lost Part 620 | . 50 . . . 120 . 90 20 . . 20 190 130 Lost Ally 160 | . . . . . . 20 120 . . . . 20 . Purge Threat 900 | . . . . . 300 . 600 . . . . . . Squads Dispatched 53 | . 5 1 . . 6 . 29 . . . . 5 7 Investigation 15 | . 3 1 . . 3 . 4 . . . . 2 2 Extermination 11 | . . . . . . . 7 . . . . 2 2 Reinforcement 11 | . 2 . . . 3 . 5 . . . . . 1 Assault 15 | . . . . . . . 13 . . . . . 2 Garrison . | . . . . . . . . . . . . . . Intercept 1 | . . . . . . . . . . . . 1 . Searches Triggered 2 | . . . . . . . . . . . . 2 . Construction Impeded 3 | . . . . . . . 2 . . . . . 1 Haulers Reinforced 2 | . . . . . . . 2 . . . . . . Active Scanning Responses . | . . . . . . . . . . . . . . Cargo Convoy Interrupts . | . . . . . . . . . . . . . . Stealth | -11 -10 -10 -10 -9 -8 -8 -7 -7 -7 -7 -6 -6 -5 --------- Run | Yrd Mat Min Exi Min Mat Gar Fac Low Low Dat Pro Fac Fac Distress Signals 16 | . 2 . . . 6 1 5 . . . . . 2 Communications Jammed . | . . . . . . . . . . . . . . Distress Signals . | . . . . . . . . . . . . . . Times Spotted 361 | . 30 . . 22 63 26 119 12 5 4 15 27 38 Peak Tracking Total 19 | . 3 . . 19 10 4 11 5 3 4 8 7 14 Tactical Retreats 37 | . 2 . . 1 3 1 21 . 1 . . 3 5 Traps | -11 -10 -10 -10 -9 -8 -8 -7 -7 -7 -7 -6 -6 -5 ------- Run | Yrd Mat Min Exi Min Mat Gar Fac Low Low Dat Pro Fac Fac Traps Triggered 13 | . 3 . . . 2 . 5 . . . . 1 2 Indirectly . | . . . . . . . . . . . . . . Trap Hack Attempts . | . . . . . . . . . . . . . . Triggered . | . . . . . . . . . . . . . . Disarmed . | . . . . . . . . . . . . . . Reprogrammed 6 | . . . . . . . 6 . . . . . . Reused 1 | . . . . . . . 1 . . . . . . Traps Extracted . | . . . . . . . . . . . . . . Installed . | . . . . . . . . . . . . . . Triggered 1 | . . . . . . . 1 . . . . . . Machines | -11 -10 -10 -10 -9 -8 -8 -7 -7 -7 -7 -6 -6 -5 ---------- Run | Yrd Mat Min Exi Min Mat Gar Fac Low Low Dat Pro Fac Fac Machines Disabled 27 | . . . . . . 6 12 1 . . . 6 2 Max in Single Turn 1 | . . . . . . 1 1 1 . . . 1 1 Garrison Access 1 | . . . . . . . . . . . . . 1 Garrison Relay 5 | . . . . . . 5 . . . . . . . Machines Repaired . | . . . . . . . . . . . . . . Machines Dismantled . | . . . . . . . . . . . . . . Machines Sabotaged . | . . . . . . . . . . . . . . Overloaded Fab Kills . | . . . . . . . . . . . . . . Hacking | -11 -10 -10 -10 -9 -8 -8 -7 -7 -7 -7 -6 -6 -5 --------- Run | Yrd Mat Min Exi Min Mat Gar Fac Low Low Dat Pro Fac Fac Machines Accessed 83 | . 9 1 1 . 16 4 28 2 . 4 . 14 4 Terminals 37 | . 6 . . . 9 4 11 1 . . . 5 1 Fabricators 7 | . . . . . . . 4 . . . . 2 1 Repair Stations 7 | . 1 . . . 2 . 2 . . . . 2 . Recycling Units 14 | . 2 . . . 2 . 6 . . . . 4 . Scanalyzers 6 | . . . . . 2 . 3 . . . . . 1 Garrison Access 5 | . . . . . 1 . 2 . . . . 1 1 Total Hacks 310 | . 26 1 1 . 59 9 105 2 . 30 . 61 16 Successful 222 | . 18 1 1 . 47 4 77 2 . 30 . 32 10 Failed 87 | . 8 . . . 12 5 28 . . . . 29 5 Catastrophic 6 | . . . . . . 2 1 . . . . 3 . Database Lockouts 1 | . . . . . . . . . . . . . 1 Manual 151 | . 20 . . . 29 3 56 1 . . . 35 7 Terminals 112 | . 15 . . . 30 9 41 1 . . . 13 3 Fabricators 26 | . . . . . . . 11 . . . . 13 2 Repair Stations 35 | . 5 . . . 15 . 7 . . . . 8 . Recycling Units 50 | . 6 . . . 4 . 19 . . . . 21 . Scanalyzers 33 | . . . . . 8 . 19 . . . . . 6 Garrison Access 21 | . . . . . 2 . 8 . . . . 6 5 Terminal Hacks 63 | . 1 1 1 . 12 4 11 2 . 30 . 1 . Record 13 | . . . 1 . . . . 1 . 11 . . . Part Schematic 12 | . . . . . . . 1 . . 11 . . . Robot Schematic 6 | . . . . . 1 . . . . 5 . . . Robot Analysis 10 | . 1 . . . 8 . 1 . . . . . . Prototype ID Bank 5 | . . . . . 1 . 1 . . 3 . . . Open Door 4 | . . 1 . . . 1 . 1 . . . 1 . Emergency Access Points 1 | . . . . . . 1 . . . . . . . Terminal Index 1 | . . . . . . . 1 . . . . . . Unreport Threat 6 | . . . . . 2 . 4 . . . . . . Reprogram Traps 1 | . . . . . . . 1 . . . . . . Reinforcement Status 1 | . . . . . . . 1 . . . . . . Recall Extermination 1 | . . . . . . . 1 . . . . . . Patrol Navigation 1 | . . . . . . 1 . . . . . . . Security Stations 1 | . . . . . . 1 . . . . . . . Fabricator Hacks 6 | . . . . . . . 3 . . . . 3 . Load Schematic 3 | . . . . . . . 2 . . . . 1 . Build 3 | . . . . . . . 1 . . . . 2 . Repair Station Hacks 26 | . 4 . . . 12 . 4 . . . . 6 . Scan Component 14 | . 2 . . . 6 . 3 . . . . 3 . Repair 12 | . 2 . . . 6 . 1 . . . . 3 . Recycling Unit Hacks 8 | . 1 . . . . . 4 . . . . 3 . Retrieve Components 8 | . 1 . . . . . 4 . . . . 3 . Scanalyzer 32 | . . . . . 8 . 19 . . . . . 5 Insert Component 12 | . . . . . 3 . 7 . . . . . 2 Analyze 11 | . . . . . 3 . 7 . . . . . 1 Retrieve Study 9 | . . . . . 2 . 5 . . . . . 2 Garrison Access Hacks 3 | . . . . . 1 . . . . . . 1 1 Unlock Access 3 | . . . . . 1 . . . . . . 1 1 Unauthorized Hacks 84 | . 12 . . . 14 . 36 . . . . 18 4 Terminals 39 | . 7 . . . 10 . 15 . . . . 5 2 Assimilate 1 | . . . . . . . 1 . . . . . . Botnet 17 | . 2 . . . 5 . 7 . . . . 2 1 Operators 3 | . . . . . . . 1 . . . . 1 1 Skim 18 | . 5 . . . 5 . 6 . . . . 2 . Fabricators 8 | . . . . . . . 5 . . . . 3 . Report 1 | . . . . . . . 1 . . . . . . Liberate 4 | . . . . . . . 3 . . . . 1 . Haulers 3 | . . . . . . . 1 . . . . 2 . Repair Stations 2 | . 1 . . . . . 1 . . . . . . Mechanics 1 | . . . . . . . 1 . . . . . . Patch 1 | . 1 . . . . . . . . . . . . Recycling Units 27 | . 4 . . . 4 . 11 . . . . 8 . Reject 7 | . . . . . 1 . 4 . . . . 2 . Recyclers 7 | . 1 . . . 2 . 2 . . . . 2 . Mask 11 | . 1 . . . 1 . 5 . . . . 4 . Tunnel 2 | . 2 . . . . . . . . . . . . Scanalyzers . | . . . . . . . . . . . . . . Garrison Access 8 | . . . . . . . 4 . . . . 2 2 Reprogram 1 | . . . . . . . 1 . . . . . . Intercept 4 | . . . . . . . 2 . . . . 1 1 Watchers 3 | . . . . . . . 1 . . . . 1 1 Data Cores Recovered 1 | . 1 . . . . . . . . . . . . Used 1 | . 1 . . . . . . . . . . . . Hacking Detections 69 | . 8 . . . 15 4 25 . . . . 13 4 Full Trace Events 6 | . . . . . 3 . 1 . . . . 2 . Feedback Events 1 | . . . . . 1 . . . . . . . . Corruption 1 | . . . . . 1 . . . . . . . . Feedback Blocked . | . . . . . . . . . . . . . . Robot Schematics Acquired 6 | . . . . . 1 . . . . 5 . . . Robots Built 2 | . . . . . . . 1 . . . . 1 . Authchips . | . . . . . . . . . . . . . . Time 142 | . . . . . . . 58 . . . . 84 . Total Robot Build Rating 9 | . . . . . . . 3 . . . . 6 . Part Schematics Acquired 21 | . . . . . 2 . 7 . . 11 . . 1 Parts Built 2 | . . . . . . . . . . . . 2 . Authchips . | . . . . . . . . . . . . . . Time 117 | . . . . . . . . . . . . 117 . Total Part Build Rating 14 | . . . . . . . . . . . . 14 . Part Studies Acquired 9 | . . . . . 2 . 5 . . . . . 2 Parts Repaired 12 | . 2 . . . 6 . 1 . . . . 3 . Time 385 | . 52 . . . 157 . 38 . . . . 138 . Parts Recycled . | . . . . . . . . . . . . . . Recycled Matter . | . . . . . . . . . . . . . . Retrieved Matter . | . . . . . . . . . . . . . . Retrieved Components 39 | . 9 . . . . . 18 . . . . 12 . Parts Scanalyzed 10 | . . . . . 3 . 6 . . . . . 1 Part Schematics Acquired 9 | . . . . . 2 . 6 . . . . . 1 Parts Damaged 1 | . . . . . . . . . . . . . 1 Bothacking | -11 -10 -10 -10 -9 -8 -8 -7 -7 -7 -7 -6 -6 -5 ------------ Run | Yrd Mat Min Exi Min Mat Gar Fac Low Low Dat Pro Fac Fac Used RIF Installer . | . . . . . . . . . . . . . . Robots Hacked . | . . . . . . . . . . . . . . Non-combat . | . . . . . . . . . . . . . . Combat . | . . . . . . . . . . . . . . Robot Hacks Applied . | . . . . . . . . . . . . . . Relay Couplers Released 25 | . . . . . . 21 3 . . . . . 1 Machine Destruction 22 | . . . . . . 21 . . . . . . 1 Programmers 3 | . . . . . . . 3 . . . . . . Fabnet Peak Effective % . | . . . . . . . . . . . . . . Robots Rewired 3 | . . . . . . 3 . . . . . . . Allies Hacked 1 | . . . . . . . 1 . . . . . . Hacks Repelled . | . . . . . . . . . . . . . . Allies | -11 -10 -10 -10 -9 -8 -8 -7 -7 -7 -7 -6 -6 -5 -------- Run | Yrd Mat Min Exi Min Mat Gar Fac Low Low Dat Pro Fac Fac Total Allies 14 | . . 3 . 1 . 5 4 . . . . 1 . Largest Group 5 | . . 3 3 4 . 5 4 . . . . 1 . Highest-Rated Group 182 | . . 40 40 71 . 182 142 . . . . 49 . Highest-Rated Ally 49 | . . 16 16 31 . 40 40 . . . . 49 . Initial Warlord ECA Mod 6 | . . . . . . . 6 6 6 6 5 5 4 Warlord Squad Rendezvous 1 | . . . . . . . . . . . . . 1 Geek 1 | . . . . . . . . . . . . . 1 Total Orders . | . . . . . . . . . . . . . . Ally Attacks 89 | . . . . 22 . 29 34 . . . . 4 . Total Damage 1697 | . . . . 206 . 411 812 . . . . 268 . Kills 20 | . . . . 5 . 7 6 . . . . 2 . Allies Corrupted . | . . . . . . . . . . . . . . Allies Melted . | . . . . . . . . . . . . . . Intel | -11 -10 -10 -10 -9 -8 -8 -7 -7 -7 -7 -6 -6 -5 ------- Run | Yrd Mat Min Exi Min Mat Gar Fac Low Low Dat Pro Fac Fac Active Infowar (turns) 3594 | 87 305 . . . 1479 2 74 961 456 52 2 . 176 Optics 1479 | . . . . . 1479 . . . . . . . . Sensors 1545 | . . . . . . 2 74 961 456 52 . . . Terrain 392 | 87 305 . . . . . . . . . . . . Traps 2 | . . . . . . . . . . . 2 . . Machine Analysis 176 | . . . . . . . . . . . . . 176 Robot Analysis Total 154 | . 1 . . . 8 . 1 . . 144 . . . Derelict Logs Recovered 7 | . . 2 . 1 . . . 2 1 . 1 . . Drone Launches . | . . . . . . . . . . . . . . Drone Recoveries . | . . . . . . . . . . . . . . Exploration | -11 -10 -10 -10 -9 -8 -8 -7 -7 -7 -7 -6 -6 -5 ------------- Run | Yrd Mat Min Exi Min Mat Gar Fac Low Low Dat Pro Fac Fac Turns Passed 15489 | 164 1669 904 387 252 3434 1611 3791 961 456 63 256 995 546 Spaces Moved 12456 | 63 809 560 249 148 1632 838 3353 1471 850 109 354 1320 700 Core 163 | 3 . . . . . . . . . . . 39 121 Treads 5219 | 60 781 560 249 148 1632 838 951 . . . . . . Legs 28 | . 28 . . . . . . . . . . . . Wheels . | . . . . . . . . . . . . . . Hover 6864 | . . . . . . . 2402 1471 850 109 354 1281 397 Flight 182 | . . . . . . . . . . . . . 182 Fastest Speed 35 | 50 160 152 152 152 155 170 53 53 53 52 53 48 35 Average Speed 99 | 154 165 156 152 152 161 170 86 53 53 52 54 51 53 Slowest Speed 350 | 160 320 160 225 152 170 170 170 53 53 56 131 350 115 Overloaded Moves . | . . . . . . . . . . . . . . Propulsion Burnouts . | . . . . . . . . . . . . . . Robots Hopped . | . . . . . . . . . . . . . . Potential Cave-ins . | . . . . . . . . . . . . . . Cave-ins Triggered . | . . . . . . . . . . . . . . Exploration Rate (%) 65 | 5 99 99 58 41 98 90 62 94 86 78 57 31 24 Regions Visited 13 Branch Regions 7 Pre-discovered Areas 32 | . 2 . 1 1 2 . 2 2 . 22 . . . Known Exits Taken 7 | . . . . . 1 . 1 1 1 1 1 1 . Unknown Exits Taken 5 | 1 1 1 1 1 . . . . . . . . . Scrap Searched 10 | . . 1 . . . . . 4 1 . 4 . . Spaces Dug 48 | . . . . . 3 . 7 28 . . 10 . . Terrain Destroyed 267 | . 6 . . 43 28 . 69 31 9 . 29 17 35 Melee . | . . . . . . . . . . . . . . Projectile 63 | . . . . . 3 . 54 1 . . . 1 4 AOE 204 | . 6 . . 43 25 . 15 30 9 . 29 16 31 Terrain Rammed 3 | . . . . . . . . . . . . . 3 Walls Destroyed . | . . . . . . . . . . . . . . Machines Disabled . | . . . . . . . . . . . . . . Actions | -11 -10 -10 -10 -9 -8 -8 -7 -7 -7 -7 -6 -6 -5 --------- Run | Yrd Mat Min Exi Min Mat Gar Fac Low Low Dat Pro Fac Fac Total 14339 | 93 1000 585 257 159 2104 943 3858 1585 854 114 398 1575 814 Wait 577 | . 61 7 . . 176 12 158 22 . . 3 122 16 Move 12443 | 62 808 559 248 147 1631 837 3352 1470 849 108 353 1319 700 Hop . | . . . . . . . . . . . . . . Pick Up 148 | 5 19 4 1 1 33 3 34 10 . 1 4 24 9 Fast Attach 74 | 7 10 . 3 . 8 . 10 3 . . 5 8 20 Attach 82 | . 3 . . . 14 . 16 10 1 1 8 21 8 Detach 34 | . 2 . . . 2 . 9 8 1 . 5 5 2 Swap 108 | 1 7 3 1 2 30 3 26 13 1 1 5 14 1 Drop 132 | . 12 8 4 1 26 3 30 10 1 2 2 27 6 Fire 694 | 18 78 4 . 8 184 53 213 39 1 . 13 35 48 Melee . | . . . . . . . . . . . . . . Ram 6 | . . . . . . . 1 . . 1 . . 4 Kick . | . . . . . . . . . . . . . . Crush . | . . . . . . . . . . . . . . Escape Stasis 9 | . . . . . . . 9 . . . . . . Rewire 32 | . . . . . . 32 . . . . . . . Trap . | . . . . . . . . . . . . . . Miscellaneous . | . . . . . . . . . . . . . . Route ------- -11/Scrapyard -10/Materials (discovered 4 exits: [*Mat x3] / *Min) -10/Mines (discovered 4 exits: [*Mat x2] / *Exi / [*Sub]) -10/Exiles -9/Mines -8/Materials (discovered 4 exits: *Fac x3 / Gar) -8/Garrison (discovered 3 exits: *Fac x2 / [*Mat]) -7/Factory (discovered 5 exits: Fac x2 / *Sto / *Low x2) -7/Lower Caves -7/Lower Caves (discovered 2 exits: *Fac / *Dat) -7/Data Miner -6/Proximity Caves -6/Factory (discovered 4 exits: *Fac / *Low / [*Ext] / Gar) -5/Factory (discovered 2 exits: [*Fac] / [*Upp]) History --------- Turn | Location | Event 81 | -11/Scrapyard | Discovered new exit (range 15) 165 | -11/Scrapyard | Entered Materials 332 | -10/Materials | Build established: Mutant 419 | -10/Materials | Discovered new exit (range 7) 618 | -10/Materials | Discovered new exit (range 13) 828 | -10/Materials | Discovered new exit (range 16) 1024 | -10/Materials | Discovered new exit (range 5) 1393 | -10/Materials | Core integrity fell below 50% 1669 | -10/Materials | Repaired Lgt. Treads 1696 | -10/Materials | Repaired EM Pulse Gun 1834 | -10/Materials | Entered Mines 1883 | -10/Mines | Discovered new exit (range 12) 1898 | -10/Mines | Met a Derelict bent on vengeance 1940 | -10/Mines | Discovered new exit (range 8) 2099 | -10/Mines | Discovered new exit (range 7) 2132 | -10/Mines | Assisted by bots powering up and referring to "LRC-V3" 2179 | -10/Mines | Found a Scrap Suit stashed away for nefarious purposes 2186 | -10/Mines | Found Scrap Suit 2291 | -10/Mines | Learned Materials stockpile data 2307 | -10/Mines | A weapon hastily lodged in a ceiling crevice suddenly fell to the ground 2355 | -10/Mines | Met a Derelict shopkeep closing up shop 2447 | -10/Mines | Learned Materials terminal intel 2723 | -10/Mines | Deemed a non-threat by the Exiles lab entrance 2723 | -10/Mines | Discovered new exit (range 5) 2738 | -10/Mines | Entered Exiles 2738 | -10/Exiles | Accompanied by 3 allies 2769 | -10/Exiles | Discovered new exit (range 14) 2794 | -10/Exiles | Met 8R-AWN 2818 | -10/Exiles | Met EX-HEX 2896 | -10/Exiles | Met EX-DEC 2925 | -10/Exiles | Learned location of Zion (-6) 3026 | -10/Exiles | Met EX-BIN 3125 | -10/Exiles | Entered Mines 3125 | -9/Mines | Accompanied by 3 allies 3128 | -9/Mines | Received a Mining Laser from a helpful Derelict 3164 | -9/Mines | YI-UF0 nonchalantly dropped a Grenade Launcher on the ground 3271 | -9/Mines | Assembled infested the area 3296 | -9/Mines | Core integrity fell below 20% 3318 | -9/Mines | Destroyed 11 combat bots 3322 | -9/Mines | Lost 4 allies 3364 | -9/Mines | Discovered new exit (range 11) 3377 | -9/Mines | Entered Materials 3377 | -8/Materials | Evolved 4 slots: Propulsion x1, Utility x2, Weapon x1 3379 | -8/Materials | Loaded intel: 12 terminal locations 3700 | -8/Materials | Build established: Tank 3987 | -8/Materials | Discovered new exit (range 10) 4391 | -8/Materials | Build established: Scavenger-Tank 4491 | -8/Materials | Discovered new exit (range 8) 4573 | -8/Materials | Lost 5 parts (1p2n2w) 4651 | -8/Materials | Lost 4 parts (2n2w) 4988 | -8/Materials | Core integrity fell below 50% 5052 | -8/Materials | Repaired Broken Hvy. Assault Rifle 5072 | -8/Materials | Repaired Reactive Plating 5168 | -8/Materials | Repaired Lgt. Treads 5208 | -8/Materials | Repaired Hrd. Medium Armor Plating 5235 | -8/Materials | Repaired Lgt. Treads 5262 | -8/Materials | Repaired Hcp. Matter Pod 5920 | -8/Materials | Discovered new exit (range 15) 6044 | -8/Materials | Learned 4 Factory zone layouts 6099 | -8/Materials | Build established: Hacker-Tank 6117 | -8/Materials | Identified exit to Garrison 6176 | -8/Materials | Learned location of Recycling (-7) 6235 | -8/Materials | Learned location of 1 exit from Storage 6432 | -8/Materials | Build established: Hacker-Gunner 6811 | -8/Materials | Entered Garrison 6839 | -8/Garrison | Build established: Hacker-Tank 6849 | -8/Garrison | Triggered checkpoint 6918 | -8/Garrison | Discovered new exit (range 3) 6954 | -8/Garrison | Warlord forces raided the area 6987 | -8/Garrison | Lost 6 allies 7115 | -8/Garrison | Triggered checkpoint 7116 | -8/Garrison | Triggered checkpoint 7131 | -8/Garrison | Triggered checkpoint 7139 | -8/Garrison | Triggered checkpoint 7257 | -8/Garrison | Rescued a captive Derelict 7258 | -8/Garrison | Rescued a captive Derelict 7327 | -8/Garrison | Triggered checkpoint 7395 | -8/Garrison | Discovered new exit (range 10) 7429 | -8/Garrison | Garrison Relay disabled 7679 | -8/Garrison | Triggered checkpoint 7733 | -8/Garrison | Garrison Relay disabled 7747 | -8/Garrison | Garrison Relay disabled 7962 | -8/Garrison | Garrison Relay disabled 8005 | -8/Garrison | Build established: Hacker-Gunner 8024 | -8/Garrison | Discovered new exit (range 15) 8257 | -8/Garrison | Garrison Relay disabled 8267 | -8/Garrison | Learned Factory security intel 8422 | -8/Garrison | Entered Factory 8422 | -7/Factory | Accompanied by 4 allies 8422 | -7/Factory | Evolved 2 slots: Propulsion x1, Utility x1 8423 | -7/Factory | Identified exit to Storage 8423 | -7/Factory | Identified exit to Lower Caves 8596 | -7/Factory | Repaired Flak Cannon+? 9222 | -7/Factory | First assault squad dispatched 9849 | -7/Factory | Build established: Hacker-Tank 10276 | -7/Factory | Build established: Hacker-Gunner 10695 | -7/Factory | Fabricated O-24 Administrator (x1) 10772 | -7/Factory | Build established: Hacker-Mutant 10946 | -7/Factory | Learned Extension stockpile data 11048 | -7/Factory | Learned Extension stockpile data 11082 | -7/Factory | Learned location of 1 exit from Upper Caves 11108 | -7/Factory | Identified exit to Factory 11124 | -7/Factory | Learned Extension security intel 11129 | -7/Factory | Learned Extension emergency access door positions 11142 | -7/Factory | Learned location of 1 exit from Lower Caves 11198 | -7/Factory | Learned location of Lower Caves (-7) 11907 | -7/Factory | High security lockdown imminent 11987 | -7/Factory | High security lockdown engaged 12213 | -7/Factory | Entered Lower Caves 12214 | -7/Lower Caves | Identified exit to Lower Caves 12240 | -7/Lower Caves | Lost 4 parts (2n1u1w) 12260 | -7/Lower Caves | Met a Warlord Commander 12261 | -7/Lower Caves | Learned location of Warlord (-5) 12262 | -7/Lower Caves | Warlord Commander delivered Encrypted Comm Array 12265 | -7/Lower Caves | Found Encrypted Comm Array 12525 | -7/Lower Caves | Found Imp. Powered Armor 12641 | -7/Lower Caves | Acquired the password to a Derelict Tinkerer's latest research 12647 | -7/Lower Caves | Found Prototype Special Weapon 12667 | -7/Lower Caves | Build established: Mutant 12805 | -7/Lower Caves | Caught by Unaware searching for contraband prototypes 12828 | -7/Lower Caves | Learned Factory stockpile data 12941 | -7/Lower Caves | Learned location of Extension (-6) 13174 | -7/Lower Caves | Entered another Lower Caves area 13176 | -7/Lower Caves | Identified exit to Data Miner 13279 | -7/Lower Caves | Encountered a Warlord checkpoint 13290 | -7/Lower Caves | Found DCF Scrap (12 items) 13630 | -7/Lower Caves | Entered Data Miner 13630 | -7/Data Miner | Discovered new exit (range 6) 13633 | -7/Data Miner | Identified exit to Proximity Caves 13642 | -7/Data Miner | Met Data Miner 13656 | -7/Data Miner | Learned location of Section 7 (-3) 13656 | -7/Data Miner | Acquired the access code to Warlord's prototype stash 13661 | -7/Data Miner | Received God Mode back door access code from Data Miner 13675 | -7/Data Miner | Interfaced with the Data Conduit 13688 | -7/Data Miner | Core integrity fell below 50% 13693 | -7/Data Miner | Entered Proximity Caves 13721 | -6/Proximity Caves | Learned Factory garrison access intel 13723 | -6/Proximity Caves | Lost 6 parts (1p2n3u) 13735 | -6/Proximity Caves | Spotter reported a threat 13735 | -6/Proximity Caves | Spotter reported a threat 13750 | -6/Proximity Caves | Spotted B-75 Beast 13806 | -6/Proximity Caves | Spotter reported a threat 13949 | -6/Proximity Caves | Entered Factory 13949 | -6/Factory | Evolved 2 slots: Propulsion x1, Utility x1 13950 | -6/Factory | Identified exit to Factory 13950 | -6/Factory | Identified exit to Lower Caves 13952 | -6/Factory | Loaded intel: 276 machine locations 13953 | -6/Factory | Loaded intel: 4 garrison access locations 13997 | -6/Factory | Identified exit to Garrison 14116 | -6/Factory | Discovered new exit (range 10) 14195 | -6/Factory | Repaired Airjet+ 14245 | -6/Factory | Fabricated Hvy. Gauss Cannon (x2) 14299 | -6/Factory | Search patrols dispatched 14328 | -6/Factory | Repaired Cmb. Airjet 14330 | -6/Factory | Build established: Gunner 14381 | -6/Factory | Repaired Hvy. Machine Gun 14649 | -6/Factory | Search patrols dispatched 14734 | -6/Factory | Fabricated D-63 Destroyer? 14834 | -6/Factory | Intercept squad dispatched 14848 | -6/Factory | Spotted Tracker 14858 | -6/Factory | Spotted Combat Programmer 14878 | -6/Factory | System corruption reached 10% 14884 | -6/Factory | Identified Molecular Deconstructor 14885 | -6/Factory | Core integrity fell below 50% 14894 | -6/Factory | Destroyed Combat Programmer 14929 | -6/Factory | Core integrity fell below 20% 14944 | -6/Factory | Entered another Factory area 14944 | -5/Factory | Evolved 2 slots: Propulsion x1, Utility x1 14945 | -5/Factory | Loaded intel: 303 machine locations 14961 | -5/Factory | Lost 17 parts (2p5n2u8w) 14984 | -5/Factory | Joined by Warlord Geek squad 15067 | -5/Factory | Identified exit to Garrison 15095 | -5/Factory | Discovered new exit (range 12) 15103 | -5/Factory | Discovered new exit (range 15) 15229 | -5/Factory | Central database locked down 15290 | -5/Factory | Lost 5 parts (3n2u) 15392 | -5/Factory | Core integrity fell below 50% 15403 | -5/Factory | System corruption reached 10% 15407 | -5/Factory | Core integrity fell below 20% 15455 | -5/Factory | Lost 7 parts (1n3u3w) 15490 | -5/Factory | Destroyed by P-70 Sage with High-powered Shock Rifle Last Messages --------------- 15473_ K-01 Serf collects debris. 15474_ U-05 Engineer lays Concrete. 15476_ U-05 Engineer builds a Wall. 15476_ U-05 Engineer lays Concrete. 15476_ K-01 Serf collects debris. 15477_ R-10 Processor collects Imp. Remote Datajack. 15477_ P-70 Sage destroyed. 15477_ U-05 Engineer lays Concrete. 15480_ K-01 Serf collects debris. 15480_ U-05 Engineer lays Concrete. 15481_ Acquired 60 matter. 15481_ U-05 Engineer lays Concrete. 15482_ Acquired Antigrav System. 15484_ R-10 Processor destroyed. 15484_ U-05 Engineer lays Concrete. 15485_ Acquired 114 matter. 15485_ R-10 Processor collects Lgt. Nuclear Core+. 15486_ U-05 Engineer lays Concrete. 15487_ Acquired Antigrav System. 15487_ U-05 Engineer lays Concrete. Map ----- +----------------------------------------------------+ | ?????????????????????????????????????????????????? | | ?????????????????????????????????????????????????? | | ????????????????????????????????????????"""??????? | | ????????????????????????????????????????"T"??????? | | ??????????????????????????????????""""???????????? | | ??????????????????????????????????""""???????????? | | ??????????????????????????????????""""???????????? | | ??????????????????????????????????""""???????????? | | ???????????????????""""???????????""""???????????? | | ??????"""""""""????""""???????????""""???????????? | | ???????????????????""""???????????""""???????????? | | ??????"""""""""????""""??????????????????????????? | | ?????????????????????????????????????????????????? | | ??????"""""""""????"""???##########??????????????? | | ???????????????????"""??? ??????????????? | | ??????"""""""""????"""??? ???????????????? | | ????????????????????????? ???????????"""" | | ????????????????????????+ < ??????"""??"""" | | ????????????????????????# ???????"""??"""" | | ????????????????????????# ???????"""??"""" | | ??????????????######????# ?????????""??"""" | | ??????? ??????# ???# ??????????""??"""" | | ???? ????# ""??# """"""???????????????? | | ??# ????# ""??# """"""???????"""?????? | | ### ????# ! """?+ k """""" ??????"""?????? | | ? ????#" """?#@ """""" #???"""?????? | | ?# ???#T """?# #????""?????? | | ?# ???#" ??#!m """""" #????""?????? | | ?# ???# ???#*= """""" ??????????????? | | ?# ???###########p!=""""""???????????????? | | ## ??##" * /= | """"""???????????????? | | ?## " % ##! ????????????? | | ?# % %% ##[ #???????????? | | ## ## ######+#???????????? | | ## #??????????????????? | | ! # ## #?"""""""""????????? | | """"""" # ## #??????????????????? | | """"""" # ## #?"""""""""????????? | | """"""" # ## +??????????????????? | | """"""" = # #? #?"""""""""????????? | | ## %= ]# #? #??????????????????? | | ## !! = #"!#+##### #?"""""""""????????? | | ## ! % #??????????????????? | | ## #?"""""""""????????? | | ## ???????????????????? | | ## ?????????????????????? | | ## ??????????????????????? | | ##### #############+######+??????????????????????? | | #???# #??????????????????????????????????????????? | | #???# #??????????????????????????????????????????? | +----------------------------------------------------+ Best States ------------- Heat Dissipation 65 Coolant Potential 65 Energy Generation 18 Energy Capacity 310 Matter Stores 300 Matter Capacity 300 Sight Range 20 Robot Scan Range 15 Terrain Scan Range 16 Terrain Scan Density 10 Armor Coverage 400 Resistance: KI 20 Propulsion Shielding 66 Weapon Shielding 66 Weapon Cycling 15 Evasion (%) 63 Melee Accuracy 6 Target Analysis 9 Core Analysis 6 Armor Integrity Analysis 30 Recoil Reduction 4 Matter Filtering 50 Offensive Hacking 30 Defensive Hacking 20 Item Schematics ----------------- Aerolev Unit | -8/Materials | Scanalyzed Adv. Targeting Computer | -8/Materials | Scanalyzed Gauss Cannon | -7/Factory | Scanalyzed Recoil Stabilizer | -7/Factory | Scanalyzed Imp. Hacking Suite | -7/Factory | Hacked Imp. Weapon Shielding | -7/Factory | Scanalyzed Gravmag System | -7/Factory | Scanalyzed Hpw. Tractor Beam | -7/Factory | Scanalyzed Propulsion Shielding | -7/Factory | Scanalyzed Combat Drone Bay | -7/Data Miner | Free Lgt. Regenerative Plating | -7/Data Miner | Free Biomechanical Wings | -7/Data Miner | Free Exp. Weapon Shielding | -7/Data Miner | Free Imp. Thermal Shield | -7/Data Miner | Free Mass Driver | -7/Data Miner | Free Magnetic Acceleration Cannon | -7/Data Miner | Free Gyrokinetic Inverter | -7/Data Miner | Free Lgt. Antimatter Reactor | -7/Data Miner | Free Hvy. Disruptor Cannon | -7/Data Miner | Free Imp. Heavy Machine Gun | -7/Data Miner | Free Enh. Gauss Cannon | -5/Factory | Scanalyzed Robot Schematics ------------------ O-24 Administrator | -8/Materials | Hacked M-28 Smith | -7/Data Miner | Free H-55 Commando | -7/Data Miner | Free M-14 Sweeper | -7/Data Miner | Free D-63 Destroyer | -7/Data Miner | Free X-62 Marksman | -7/Data Miner | Free Fabricated ------------ O-24 Administrator | x1 | -7/Factory Hvy. Gauss Cannon | x2 | -6/Factory | Preloaded D-63 Destroyer | x1 | -6/Factory Repaired ---------- Lgt. Treads | 24% | -10/Materials EM Pulse Gun | 24% | -10/Materials Hvy. Assault Rifle | 72% | -8/Materials | Broken Reactive Plating | 3% | -8/Materials Lgt. Treads | 37% | -8/Materials Hrd. Medium Armor Plating | 65% | -8/Materials Lgt. Treads | 45% | -8/Materials Hcp. Matter Pod | 42% | -8/Materials Flak Cannon | 14% | -7/Factory Airjet | 35% | -6/Factory Cmb. Airjet | 53% | -6/Factory Hvy. Machine Gun | 38% | -6/Factory Studied --------- Lgt. Assault Rifle | -8/Materials | Hacked Flak Cannon | -8/Materials | Hacked Gravmag System | -7/Factory | Hacked Gauss Cannon | -7/Factory | Hacked Airjet | -7/Factory | Hacked Lgt. Nuclear Core | -7/Factory | Hacked Assault Cannon | -7/Factory | Hacked Enh. Gauss Cannon | -5/Factory | Hacked Adv. Assault Cannon | -5/Factory | Hacked Alien Tech Used ----------------- None Achievements -------------- Botjacking Look Less Dangerous Next Time Challenges ------------ None Game ------ Seed BiocellPlasmaClaymores Manual? 0 Play Time 02:49:58 Cumulative 624.6 hours Start 2025.11.17 @ 09:27:07 End 2025.11.18 @ 00:43:15 Sessions 1 Manual Loads 0 Difficulty Rogue Special Mode None Game No. 313 Rogue 313 Adventurer 0 Explorer 0 Win Type - Total 7 Types 3/0/2/1/0/0/0/0/0/1 Lore% 87 Gallery% 78 Achievement% 46 Wizard Run 0 Options --------- Layout 2 ASCII 0 Keyboard 1 Movement Vi Keybinds 0 Fullscreen 1 Font 16/SmallcapsGlow Map View 55x47 Zoom Use 0% Tactical HUD 1 Map Filters NONE Filters NONE Steam 0 RUN: 8b85f09c-e650-45e3-95b9-046ce164f164